Cogmind - Beta 11.1 @@@ ROGUE MODE // 2022.06.09 @ 12:04:19 Player: Andru7428 Result: Self-destructed Performance ------------- Evolutions (5) 2500 Regions Visited (17) 3400 Robots Destroyed (196) 980 Value Destroyed (9557) 9557 Prototype IDs (12) 240 Alien Tech Used (0) 0 Bonus (4918) 4918 TOTAL SCORE: 21595 Bonus ------- High Alert Combat Kills 460 Follower Combat Kills 740 Entered Garrisons 1200 Used RIF Installer 3000 Friendly Fire -482 Cogmind --------- Core Integrity 882/1000 Matter 270/300 Energy 100/100 System Corruption 1% Temperature Cool (0) Movement Rolling (105) Ox1 Location -5/Factory Parts ------- > --- POWER (1) -------- (None) > --- PROPULSION (2) --- Armored Wheel Armored Wheel > --- UTILITY (12) ----- Advanced Heat Sink High-capacity Storage Unit Improved Signal Interpreter Advanced Targeting Computer Relay Coupler [NC] (26) Relay Coupler [Swarmer] (45) Relay Coupler [Sentry] (25) Relay Coupler [Hunter] (13) > --- WEAPON (2) ------- Improved Remote Datajack > --- INVENTORY (20) --- Light Nuclear Core Armored Wheel Armored Wheel Relay Coupler [Swarmer] (41) Relay Coupler [Grunt] (29) Relay Coupler [Grunt] (30) Relay Coupler [Brawler] (33) Relay Coupler [Sentry] (23) Relay Coupler [Sentry] (25) Relay Coupler [Sentry] (27) Relay Coupler [Demolisher] (26) Relay Coupler [Hunter] (17) Relay Coupler [Heavy] (14) Relay Coupler [Behemoth] (10) Advanced Plasma Cannon Advanced Plasma Cannon Gauss Rifle Missile Launcher Katana Peak State ------------ > --- POWER ------------ Light Fission Core > --- PROPULSION ------- Carbon-fiber Leg Carbon-fiber Leg > --- UTILITY ---------- Advanced Heat Sink High-capacity Storage Unit Experimental Sensor Array Improved Signal Interpreter Advanced Targeting Computer Improved Medium Armor Plating Relay Coupler [NC] Relay Coupler [Grunt] Relay Coupler [Sentry] Relay Coupler [Hunter] Relay Coupler [Hunter] > --- WEAPON ----------- Advanced Plasma Cannon Advanced Plasma Cannon > --- INVENTORY -------- Light Nuclear Core Carbon-fiber Leg Flexi-carbon Leg Relay Coupler [Brawler] Relay Coupler [Sentry] Relay Coupler [Sentry] Relay Coupler [Sentry] Relay Coupler [Demolisher] Relay Coupler [Hunter] Relay Coupler [Hunter] Relay Coupler [Heavy] Relay Coupler [Behemoth] Advanced Plasma Cannon Gauss Rifle Gauss Rifle Missile Launcher Remote Datajack Improved Remote Datajack Katana [Rating: 74] Favorites ----------- Power Light Nuclear Core Engine Light Ion Engine Power Core Light Nuclear Core Propulsion Armored Wheel Leg Aluminum Leg Wheel Armored Wheel Hover Unit Cooled Airjet Utility Improved Signal Interpreter Device Advanced Heat Sink Storage High-capacity Storage Unit Processor Improved Signal Interpreter Hackware Relay Coupler [Grunt] Protection Improved Light Armor Plating Weapon Enhanced Autogun Energy Gun Medium Laser Energy Cannon Improved EM Pulse Cannon Ballistic Gun Enhanced Autogun Ballistic Cannon Magnetic Acceleration Cannon Launcher Missile Launcher Special Weapon Remote Datajack Slashing Weapon Katana Special Melee Weapon Improved Datajack Build | -11 -10 -10 -10 -9 -8 -8 -8 -8 -7 -7 -6 -6 -6 -6 -5 -5 -5 ------- Run | Scr Mat Min Exi Min Mat Gar Mat Gar Fac Gar Fac Gar Fac Gar Fac Gar Fac Slots Evolved 10 | . . . . . 4 . . . 2 . 2 . . . 2 . . Power . | . . . . . . . . . . . . . . . . . . Propulsion . | . . . . . . . . . . . . . . . . . . Utility 10 | . . . . . 4 . . . 2 . 2 . . . 2 . . Weapon . | . . . . . . . . . . . . . . . . . . Parts Attached 259 | 8 10 8 . 3 28 13 25 39 11 14 1 18 4 25 21 29 2 Power 27 | 1 3 1 . 1 4 1 2 7 2 . . 1 . 2 1 1 . Engine 14 | 1 3 . . 1 4 1 . 2 . . . . . 1 . 1 . Core 13 | . . 1 . . . . 2 5 2 . . 1 . 1 1 . . Reactor . | . . . . . . . . . . . . . . . . . . Propulsion 53 | 2 5 1 . . 5 3 9 9 . 1 . 1 . 6 2 9 . Treads . | . . . . . . . . . . . . . . . . . . Leg 44 | 2 5 1 . . 4 3 9 7 . . . . . 5 2 6 . Wheel 8 | . . . . . . . . 2 . 1 . 1 . 1 . 3 . Hover 1 | . . . . . 1 . . . . . . . . . . . . Flight . | . . . . . . . . . . . . . . . . . . Utility 92 | 1 2 . . 2 16 5 4 8 5 9 1 11 4 9 6 8 1 Device 20 | . 2 . . 2 5 . . 1 1 . 1 2 1 1 3 1 . Storage 7 | 1 . . . . 1 . . 1 . 2 . . 1 . . 1 . Processor 6 | . . . . . 4 . . 1 . . . . . . 1 . . Hackware 27 | . . . . . . . . . 2 4 . 6 2 5 1 6 1 Protection 32 | . . . . . 6 5 4 5 2 3 . 3 . 3 1 . . Artifact . | . . . . . . . . . . . . . . . . . . Weapon 87 | 4 . 6 . . 3 4 10 15 4 4 . 5 . 8 12 11 1 Energy Gun 7 | 4 . 3 . . . . . . . . . . . . . . . Energy Cannon 17 | . . . . . . . . 2 2 2 . 3 . 3 4 1 . Ballistic Gun 19 | . . . . . 3 2 8 6 . . . . . . . . . Ballistic Cannon 1 | . . . . . . . . . . . . . . . 1 . . Launcher 11 | . . 3 . . . 2 . 1 . . . . . 1 1 3 . Special Weapon 20 | . . . . . . . . . 1 2 . 1 . 3 6 6 1 Impact Weapon . | . . . . . . . . . . . . . . . . . . Slashing Weapon 7 | . . . . . . . . 3 1 . . 1 . 1 . 1 . Piercing Weapon . | . . . . . . . . . . . . . . . . . . Special Melee Weapon 5 | . . . . . . . 2 3 . . . . . . . . . Unidentified Prototypes 6 | . . . . 1 2 . 1 . 1 . . . . . 1 . . Parts Lost 58 | . 1 . . . 5 . 1 11 1 3 . 7 . 18 3 4 4 Power 11 | . 1 . . . 1 . . 3 1 . . 1 . 2 1 . 1 Propulsion 10 | . . . . . 1 . . 1 . 1 . 1 . 4 . 2 . Utility 24 | . . . . . 3 . . 3 . 2 . 3 . 8 2 1 2 Weapon 13 | . . . . . . . 1 4 . . . 2 . 4 . 1 1 Highest Loss Streak 6 | . 1 . . . 3 . 1 4 1 1 . 3 . 6 2 3 3 To Critical Strikes . | . . . . . . . . . . . . . . . . . . Average Slot Usage (%) 93 | . 97 100 100 100 97 100 100 94 98 98 93 94 99 75 83 87 91 Engine 3 | . 14 6 . 3 9 9 . 1 . . . . . 2 . 1 5 Core 4 | . . 7 14 10 . . 8 6 7 7 6 5 6 2 5 3 . Leg 12 | . 28 28 28 28 18 18 18 13 . . . . . 8 10 9 . Wheel 4 | . . . . . . . . 4 15 14 13 13 13 3 . 1 11 Device 5 | . 11 14 14 14 9 . . 5 13 . 6 4 6 1 10 2 5 Storage 9 | . 14 14 14 14 9 9 9 9 7 8 13 13 12 9 5 5 5 Processor 11 | . . . . . 17 18 18 21 17 12 6 6 6 6 7 11 11 Hackware 11 | . . . . . . . . . 5 16 20 20 28 18 23 35 39 Protection 12 | . . . . . 16 26 27 14 13 21 13 15 10 7 3 1 . Energy Gun 3 | . 28 26 28 28 2 . . . . . . . . . . . . Energy Cannon 3 | . . . . . . . . 3 4 7 6 6 6 4 8 6 4 Ballistic Gun 5 | . . . . . 15 17 17 9 . . . . . . . . . Special Weapon 2 | . . . . . . . . . 6 6 6 5 6 3 1 2 3 Naked Turns . | . . . . . . . . . . . . . . . . . . Heaviest Build 100 | 12 15 15 15 15 30 30 29 62 82 84 66 100 69 73 74 72 63 Greatest Support 35 | 20 20 20 20 20 27 20 32 32 24 24 24 24 24 35 35 35 24 Greatest Overweight (x) 7 | . . . . . 1 1 1 2 3 3 2 7 5 5 4 5 2 Average Overweight (x) 1 | . . . . . . 1 . . 2 2 2 2 4 2 1 1 2 Largest Inventory Capacity 20 | 8 8 8 8 8 20 8 8 20 20 20 20 20 20 20 20 20 20 Average Capacity 14 | 6 8 8 8 8 8 8 8 11 20 20 20 20 20 20 20 20 20 Most Carried 20 | 6 8 8 8 8 8 8 8 20 20 20 19 20 20 20 20 20 20 Average Carried 13 | 4 7 8 8 7 7 7 7 10 19 19 19 18 19 16 19 18 19 Final Capacity 20 | 8 8 8 8 8 8 8 8 20 20 20 20 20 20 20 20 20 20 Final Carried 20 | 6 8 8 8 8 8 8 8 20 20 20 19 20 19 20 19 20 19 Class Distribution -------------------- 36% | Botlord-Mutant 30% | Mutant 17% | Bothacker-Mutant 14% | Scavenger-Mutant Dominant Class ---------------- Mutant | -10/Materials Mutant | -10/Mines Mutant | -10/Exiles Mutant | -9/Mines Mutant | -8/Materials Scavenger-Mutant | -8/Garrison Mutant | -8/Materials Scavenger-Mutant | -8/Garrison Bothacker-Mutant | -7/Factory Bothacker-Mutant | -7/Garrison Bothacker-Mutant | -6/Factory Botlord-Mutant | -6/Garrison Botlord-Mutant | -6/Factory Botlord-Mutant | -6/Garrison Botlord-Mutant | -5/Factory Botlord-Mutant | -5/Garrison Botlord-Mutant | -5/Factory Resources | -11 -10 -10 -10 -9 -8 -8 -8 -8 -7 -7 -6 -6 -6 -6 -5 -5 -5 ----------- Run | Scr Mat Min Exi Min Mat Gar Mat Gar Fac Gar Fac Gar Fac Gar Fac Gar Fac Matter Collected 5387 | 228 128 129 40 . 865 371 1090 655 160 291 . 350 . 384 178 490 28 Remotely . | . . . . . . . . . . . . . . . . . . Salvage Created 8230 | . 542 169 . . 975 446 1417 708 122 603 . 809 . 903 312 1100 124 Parts 426 | . 15 13 . . 59 31 82 47 4 35 . 37 . 33 19 48 3 Haulers Intercepted 8 | . 2 . . . 2 . 4 . . . . . . . . . . Recyclers Shooed 2 | . 1 . . . 1 . . . . . . . . . . . . Parts Field Recycled . | . . . . . . . . . . . . . . . . . . Retrieved Matter . | . . . . . . . . . . . . . . . . . . Parts Self-Destructed . | . . . . . . . . . . . . . . . . . . Prevented . | . . . . . . . . . . . . . . . . . . Kills | -11 -10 -10 -10 -9 -8 -8 -8 -8 -7 -7 -6 -6 -6 -6 -5 -5 -5 ------- Run | Scr Mat Min Exi Min Mat Gar Mat Gar Fac Gar Fac Gar Fac Gar Fac Gar Fac Combat Hostiles Destroyed 175 | . 10 9 . . 24 14 23 17 3 14 . 14 . 16 7 22 2 Melee 3 | . . . . . . . . . . . . 1 . 2 . . . Guns 78 | . 9 3 . . 24 9 23 10 . . . . . . . . . Cannons 45 | . . . . . . . . 1 3 12 . 9 . 4 6 9 1 AOE 29 | . . 5 . . . 5 . 6 . 1 . . . 3 . 9 . Classes Destroyed 14 | . 3 1 . . 3 . 2 1 . 1 . 3 . . . . . Worker 2 | . . . . . 1 . 1 . . . . . . . . . . Hauler 8 | . 2 . . . 2 . 4 . . . . . . . . . . Recycler 1 | . . . . . . . 1 . . . . . . . . . . Watcher 7 | . 1 . . . 1 2 . 1 . . . . . . 2 . . Swarmer 65 | . . 5 . . 10 7 3 7 1 5 . 6 . 4 4 13 . Cutter 1 | . . . . . . . . . . 1 . . . . . . . Grunt 70 | . 10 4 . . 8 4 9 7 2 3 . 4 . 11 . 7 1 Brawler 4 | . . . . . 1 1 . . . . . 1 . . . 1 . Duelist 5 | . . . . . . . . 2 . . . . . . . 2 1 Sentry 22 | . . . . . 5 2 9 1 . 5 . . . . . . . Specialist 2 | . . . . . . . . . . . . 2 . . . . . Hunter 3 | . . . . . . . 2 1 . . . . . . . . . Programmer 4 | . . . . . . . . . . . . 1 . . 3 . . Behemoth 2 | . . . . . . . . . . . . 1 . 1 . . . Best Kill Streak 6 | . 2 3 . . 4 4 4 6 1 4 . 2 . 3 4 5 2 Combat Bots Only 6 | . 2 3 . . 4 4 4 6 1 4 . 2 . 3 4 5 2 Max Kills in Single Turn 4 | . 1 2 . . 2 3 1 3 1 1 . 1 . 3 1 4 1 Gunslinging 1 | . . . . . . 1 . . . . . . . . . . . Exploded 4 | . . 2 . . . 3 . 2 . 1 . . . 3 . 4 . Melee 1 | . . . . . . . . . . . . 1 . 1 . . . Uniques/NPCs Destroyed . | . . . . . . . . . . . . . . . . . . Combat | -11 -10 -10 -10 -9 -8 -8 -8 -8 -7 -7 -6 -6 -6 -6 -5 -5 -5 -------- Run | Scr Mat Min Exi Min Mat Gar Mat Gar Fac Gar Fac Gar Fac Gar Fac Gar Fac Damage Taken 10229 | . 383 231 . . 1116 397 1690 1233 49 913 . 996 57 1746 528 614 276 Core 973 | . 68 57 . . 100 103 69 79 . 88 . 70 . 221 52 49 17 Absorbed by Shields 8 | . . . . . . . . . . . . 8 . . . . . Core Remaining (%) 67 | 100 . . . 50 . . . 36 . 87 . . . 65 . . . Volleys Fired 710 | . 56 20 . . 80 38 99 43 16 64 . 110 4 85 23 57 15 Largest 2 | . 2 2 . . 2 2 2 2 1 2 . 2 1 2 2 2 1 Hottest 196 | . 100 100 . . 73 50 53 138 69 138 . 138 5 196 196 196 98 Shots Fired 1049 | . 103 33 . . 160 69 197 75 16 68 . 113 4 93 37 66 15 Gun 618 | . 103 26 . . 160 65 197 67 . . . . . . . . . Cannon 305 | . . . . . . . . 4 6 43 . 85 . 76 30 53 8 Launcher 20 | . . 7 . . . 4 . 4 . . . . . 1 . 4 . Special 106 | . . . . . . . . . 10 25 . 28 4 16 7 9 7 Kinetic 475 | . . . . . 145 65 197 67 . . . . . . 1 . . Thermal 250 | . 103 26 . . 15 . . . . . . . . 16 29 53 8 Explosive 20 | . . 7 . . . 4 . 4 . . . . . 1 . 4 . Electromagnetic 198 | . . . . . . . . 4 6 43 . 85 . 60 . . . Robot Hit Streak 51 | . 16 17 . . 25 15 51 10 10 19 . 19 12 14 13 12 8 Robot Miss Streak 7 | . 3 3 . . 6 3 3 2 3 7 . 3 . 3 3 2 2 Penetration Max 1 | . . . . . . . 1 . . . . . . . . . . Secondary Targets 4 | . . . . . . 1 2 1 . . . . . . . . . Max Gunslinging Chain 1 | . . . . . . 1 1 1 . . . . . . . . . Shots Hit Robots 801 | . 81 23 . . 113 49 159 77 13 45 . 74 4 65 25 61 12 Core Hits 303 | . 26 11 . . 46 24 52 35 3 17 . 20 . 21 9 36 3 Critical Kills 7 | . . . . . . 1 . 1 . . . . . . 1 4 . Critical Parts Destroyed 4 | . . . . . 3 . 1 . . . . . . . . . . Critical Strikes 34 | . 11 4 . . 3 1 1 2 . 1 . 4 . . 2 5 . Burn 15 | . 11 4 . . . . . . . . . . . . . . . Meltdown 5 | . . . . . . . . . . . . . . . 1 4 . Destroy 6 | . . . . . 3 1 1 1 . . . . . . . . . Blast 1 | . . . . . . . . . . . . . . . 1 . . Corrupt 5 | . . . . . . . . . . 1 . 4 . . . . . Sever 2 | . . . . . . . . 1 . . . . . . . 1 . Melee Attacks 59 | . . . . . . . 5 29 2 . . 6 . 3 . 14 . Impact . | . . . . . . . . . . . . . . . . . . Slashing 39 | . . . . . . . . 14 2 . . 6 . 3 . 14 . Piercing . | . . . . . . . . . . . . . . . . . . Sneak Attacks 19 | . . . . . . . 3 15 . . . . . 1 . . . Combat Hostiles 1 | . . . . . . . . . . . . . . 1 . . . Follow-up Attacks . | . . . . . . . . . . . . . . . . . . Damage Inflicted 17961 | . 990 690 . . 2063 1192 2889 1789 179 980 . 1763 . 1828 741 2590 267 Guns 7854 | . 990 259 . . 2063 864 2881 797 . . . . . . . . . Cannons 6247 | . . . . . . . . 59 179 804 . 1455 . 1546 741 1196 267 Explosions 2454 | . . 431 . . . 328 . 491 . 176 . 136 . 162 . 730 . Melee 1398 | . . . . . . . . 442 . . . 172 . 120 . 664 . Ramming 8 | . . . . . . . 8 . . . . . . . . . . Kinetic 6508 | . . . . . 1931 864 2881 797 . . . . . . 35 . . Thermal 4467 | . 990 259 . . 132 . . 173 . 176 . 136 . 432 706 1196 267 Explosive 1969 | . . 431 . . . 328 . 318 . . . . . 162 . 730 . Electromagnetic 3611 | . . . . . . . . 59 179 804 . 1455 . 1114 . . . Impact . | . . . . . . . . . . . . . . . . . . Slashing 1398 | . . . . . . . . 442 . . . 172 . 120 . 664 . Piercing . | . . . . . . . . . . . . . . . . . . Highest Corruption 2 | . . . . . . . . . 1 1 . 2 2 2 1 1 1 Average Corruption 1 | . . . . . . . . . 1 1 . 1 2 2 1 1 1 Corruption Purged . | . . . . . . . . . . . . . . . . . . Corruption Blocked . | . . . . . . . . . . . . . . . . . . Effects 69 | . . . . . . . . . . 9 . 12 5 30 4 9 . Message Errors 18 | . . . . . . . . . . 2 . 2 2 6 3 3 . Matter Fused 16 | . . . . . . . . . . 3 . 5 1 3 . 4 . Heat Flow Errors 9 | . . . . . . . . . . 2 . . 2 4 . 1 . Energy Discharges 10 | . . . . . . . . . . 1 . 2 . 6 1 . . Data Loss (minor) 11 | . . . . . . . . . . 1 . 2 . 8 . . . Data Loss (major) 3 | . . . . . . . . . . . . 1 . 2 . . . Misfires 1 | . . . . . . . . . . . . . . . . 1 . Alerts 1 | . . . . . . . . . . . . . . 1 . . . Overload Shots . | . . . . . . . . . . . . . . . . . . Overflow Damage 202 | . . 64 . . . 18 . . . . . 30 . 31 34 25 . Projectiles 90 | . . . . . . . . . . . . . . 31 34 25 . Explosions 82 | . . 64 . . . 18 . . . . . . . . . . . Melee 30 | . . . . . . . . . . . . 30 . . . . . Knockbacks . | . . . . . . . . . . . . . . . . . . Impact . | . . . . . . . . . . . . . . . . . . Kinetic . | . . . . . . . . . . . . . . . . . . Secondary . | . . . . . . . . . . . . . . . . . . Self-Inflicted Damage 141 | . . 39 . . . 24 . 41 . . . 37 . . . . . Shots 4 | . . 1 . . . 1 . 1 . . . 1 . . . . . Rammed . | . . . . . . . . . . . . . . . . . . Targets Rammed 2 | . . . . . . . 1 . . . . . . . 1 . . Kicked 2 | . . . . . . . 1 . . . . . . . 1 . . Crushed . | . . . . . . . . . . . . . . . . . . Highest Temperature 370 | . 240 201 . . 267 209 370 102 12 338 . 317 214 267 210 342 6 Average Temperature 84 | . 45 73 . . 69 60 100 41 7 100 . 87 95 74 81 127 4 Received Heat Transfer 3027 | . 195 78 . . 522 126 774 396 9 162 . 120 . 453 18 138 36 Effects 9 | . 1 . . . . . 3 . . 1 . . . . . 4 . Shutdowns 1 | . . . . . . . 1 . . . . . . . . . . Energy Bleed 2 | . . . . . . . 1 . . 1 . . . . . . . Interference 4 | . 1 . . . . . . . . . . . . . . 3 . Matter Decay 2 | . . . . . . . 1 . . . . . . . . 1 . Siege Activations . | . . . . . . . . . . . . . . . . . . Robots Corrupted 11 | . . . . . . . . . . 1 . 4 . 6 . . . Combat Hostiles 11 | . . . . . . . . . . 1 . 4 . 6 . . . Parts Fried 19 | . . . . . . . . . 1 5 . 6 . 7 . . . Impact Corruptions . | . . . . . . . . . . . . . . . . . . Robots Melted 11 | . 2 1 . . . . . . . . . . . 1 1 5 1 Combat Hostiles 9 | . 1 1 . . . . . . . . . . . 1 1 4 1 Parts Melted 33 | . 14 1 . . . . . . 1 1 . . . 3 5 7 1 Heat Transferred 9568 | . 3737 1036 . . 370 . . 200 . 175 . 250 . 650 950 1800 400 Parts Sabotaged . | . . . . . . . . . . . . . . . . . . Parts Stolen . | . . . . . . . . . . . . . . . . . . Parts Stripped . | . . . . . . . . . . . . . . . . . . Power Chain Reactions 4 | . . . . . . . . 1 . 2 . 1 . . . . . Missiles Intercepted . | . . . . . . . . . . . . . . . . . . Alert | -11 -10 -10 -10 -9 -8 -8 -8 -8 -7 -7 -6 -6 -6 -6 -5 -5 -5 ------- Run | Scr Mat Min Exi Min Mat Gar Mat Gar Fac Gar Fac Gar Fac Gar Fac Gar Fac Peak Influence 916 | . 265 349 . . 356 679 608 916 480 474 259 714 398 381 314 767 422 Initial 480 | . . . . . . 33 330 234 480 . 248 181 374 149 199 62 402 Average 301 | . 103 221 . . 150 435 313 565 98 244 251 419 345 260 167 542 405 Maximum Alert Level 3 | . 1 1 . . 1 2 2 3 2 2 1 3 1 1 1 3 2 Low Security (%) 36 | 100 88 36 . 100 67 18 21 . 97 54 . 7 3 21 69 4 . Level 1 37 | . 11 63 . . 32 12 46 18 . 27 100 48 96 78 30 32 21 Level 2 20 | . . . . . . 69 32 50 2 18 . 38 . . . 29 78 Level 3 5 | . . . . . . . . 30 . . . 5 . . . 33 . Level 4 . | . . . . . . . . . . . . . . . . . . Level 5 . | . . . . . . . . . . . . . . . . . . High Security . | . . . . . . . . . . . . . . . . . . Max Security . | . . . . . . . . . . . . . . . . . . Squads Dispatched 14 | . 2 . . . 2 . 5 . 2 . . . 2 . 1 . . Investigation 5 | . . . . . 2 . 2 . 1 . . . . . . . . Extermination 2 | . . . . . . . . . . . . . 1 . 1 . . Reinforcement 6 | . 2 . . . . . 2 . 1 . . . 1 . . . . Assault . | . . . . . . . . . . . . . . . . . . Garrison 1 | . . . . . . . 1 . . . . . . . . . . Intercept . | . . . . . . . . . . . . . . . . . . Searches Triggered . | . . . . . . . . . . . . . . . . . . Construction Impeded . | . . . . . . . . . . . . . . . . . . Haulers Reinforced . | . . . . . . . . . . . . . . . . . . Active Scanning Responses . | . . . . . . . . . . . . . . . . . . Cargo Convoy Interrupts . | . . . . . . . . . . . . . . . . . . Alert ID Control Effect 17 | . . . . . . . . . . . . 5 . 8 . 4 . Stealth | -11 -10 -10 -10 -9 -8 -8 -8 -8 -7 -7 -6 -6 -6 -6 -5 -5 -5 --------- Run | Scr Mat Min Exi Min Mat Gar Mat Gar Fac Gar Fac Gar Fac Gar Fac Gar Fac Distress Signals 15 | . 1 1 . . 5 1 5 1 . . . . . . 1 . . Communications Jammed . | . . . . . . . . . . . . . . . . . . Distress Signals . | . . . . . . . . . . . . . . . . . . Times Spotted 315 | . 16 9 . . 40 17 51 28 8 30 . 34 2 28 15 31 6 Peak Tracking Total 11 | . 3 3 . . 5 5 7 6 3 7 . 6 3 11 5 6 3 Tactical Retreats 23 | . 1 . . . 2 2 5 2 . 2 . 6 . 1 . 2 . Traps | -11 -10 -10 -10 -9 -8 -8 -8 -8 -7 -7 -6 -6 -6 -6 -5 -5 -5 ------- Run | Scr Mat Min Exi Min Mat Gar Mat Gar Fac Gar Fac Gar Fac Gar Fac Gar Fac Traps Triggered 37 | . 1 . . . . 2 2 3 2 7 . 9 . 7 1 3 . Indirectly . | . . . . . . . . . . . . . . . . . . Trap Hack Attempts 28 | . . . . . . . 28 . . . . . . . . . . Triggered . | . . . . . . . . . . . . . . . . . . Disarmed 1 | . . . . . . . 1 . . . . . . . . . . Reprogrammed . | . . . . . . . . . . . . . . . . . . Reused . | . . . . . . . . . . . . . . . . . . Traps Extracted . | . . . . . . . . . . . . . . . . . . Installed . | . . . . . . . . . . . . . . . . . . Triggered . | . . . . . . . . . . . . . . . . . . Machines | -11 -10 -10 -10 -9 -8 -8 -8 -8 -7 -7 -6 -6 -6 -6 -5 -5 -5 ---------- Run | Scr Mat Min Exi Min Mat Gar Mat Gar Fac Gar Fac Gar Fac Gar Fac Gar Fac Machines Disabled 21 | . 1 1 . . 1 . . 2 . 4 . 6 . 4 . 2 . Max in Single Turn 1 | . 1 1 . . 1 . . 1 . 1 . 1 . 1 . 1 . Garrison Relay 14 | . . . . . . . . 2 . 3 . 4 . 3 . 2 . Phase Generator 1 | . . . . . . . . . . 1 . . . . . . . Machines Sabotaged . | . . . . . . . . . . . . . . . . . . Garrisons Compromised . | . . . . . . . . . . . . . . . . . . Overloaded Fab Kills . | . . . . . . . . . . . . . . . . . . Hacking | -11 -10 -10 -10 -9 -8 -8 -8 -8 -7 -7 -6 -6 -6 -6 -5 -5 -5 --------- Run | Scr Mat Min Exi Min Mat Gar Mat Gar Fac Gar Fac Gar Fac Gar Fac Gar Fac Machines Accessed 42 | . 4 . 1 . 14 . 11 . 3 . 2 . 3 . 4 . . Terminals 25 | . 4 . . . 10 . 7 . 1 . 1 . . . 2 . . Fabricators 2 | . . . . . . . . . 1 . . . . . 1 . . Repair Stations 2 | . . . . . . . . . . . . . 2 . . . . Recycling Units 3 | . . . . . 2 . 1 . . . . . . . . . . Scanalyzers 3 | . . . . . 1 . 2 . . . . . . . . . . Garrison Access 6 | . . . . . 1 . 1 . 1 . 1 . 1 . 1 . . Total Hacks 122 | . 8 . 1 . 60 . 25 . 7 . 4 . 7 . 10 . . Successful 74 | . 5 . 1 . 36 . 19 . 5 . 3 . 2 . 3 . . Failed 47 | . 2 . . . 24 . 6 . 2 . 1 . 5 . 7 . . Catastrophic 4 | . 1 . . . 1 . . . 1 . . . 1 . . . . Database Lockouts 1 | . 1 . . . . . . . . . . . . . . . . Manual 50 | . 4 . . . 31 . 7 . 2 . 2 . . . 4 . . Terminals 86 | . 8 . . . 45 . 18 . 5 . 3 . . . 7 . . Fabricators 3 | . . . . . . . . . 1 . . . . . 2 . . Repair Stations 6 | . . . . . . . . . . . . . 6 . . . . Recycling Units 7 | . . . . . 6 . 1 . . . . . . . . . . Scanalyzers 11 | . . . . . 6 . 5 . . . . . . . . . . Garrison Access 8 | . . . . . 3 . 1 . 1 . 1 . 1 . 1 . . Terminal Hacks 34 | . 5 . 1 . 16 . 7 . 2 . 2 . . . 1 . . Record 1 | . . . 1 . . . . . . . . . . . . . . Robot Analysis 5 | . 1 . . . 4 . . . . . . . . . . . . Prototype ID Bank 3 | . . . . . 3 . . . . . . . . . . . . Branch Access Points 1 | . . . . . 1 . . . . . . . . . . . . Alert Level 1 | . . . . . 1 . . . . . . . . . . . . Unreport Threat 8 | . . . . . 3 . 3 . 2 . . . . . . . . Locate Traps 8 | . 2 . . . 3 . 2 . . . 1 . . . . . . Registered Components 3 | . 1 . . . . . . . . . 1 . . . 1 . . Zone Layout 4 | . 1 . . . 1 . 2 . . . . . . . . . . Fabricator Hacks 1 | . . . . . . . . . 1 . . . . . . . . Build 1 | . . . . . . . . . 1 . . . . . . . . Repair Station Hacks 1 | . . . . . . . . . . . . . 1 . . . . Scan Component 1 | . . . . . . . . . . . . . 1 . . . . Recycling Unit Hacks 4 | . . . . . 3 . 1 . . . . . . . . . . Report Inventory 3 | . . . . . 2 . 1 . . . . . . . . . . Retrieve Components 1 | . . . . . 1 . . . . . . . . . . . . Scanalyzer 10 | . . . . . 6 . 4 . . . . . . . . . . Insert Component 5 | . . . . . 3 . 2 . . . . . . . . . . Analyze 5 | . . . . . 3 . 2 . . . . . . . . . . Garrison Access Hacks 6 | . . . . . 1 . 1 . 1 . 1 . 1 . 1 . . Unlock Access 6 | . . . . . 1 . 1 . 1 . 1 . 1 . 1 . . Unauthorized Hacks 18 | . . . . . 10 . 6 . 1 . . . . . 1 . . Terminals 17 | . . . . . 9 . 6 . 1 . . . . . 1 . . Track 4 | . . . . . 3 . 1 . . . . . . . . . . Botnet 11 | . . . . . 5 . 4 . 1 . . . . . 1 . . Operators 2 | . . . . . 1 . 1 . . . . . . . . . . Fabricators . | . . . . . . . . . . . . . . . . . . Repair Stations . | . . . . . . . . . . . . . . . . . . Recycling Units 1 | . . . . . 1 . . . . . . . . . . . . Tunnel 1 | . . . . . 1 . . . . . . . . . . . . Scanalyzers . | . . . . . . . . . . . . . . . . . . Garrison Access . | . . . . . . . . . . . . . . . . . . Data Cores Recovered . | . . . . . . . . . . . . . . . . . . Used . | . . . . . . . . . . . . . . . . . . Hacking Detections 32 | . 2 . . . 13 . 8 . 2 . 1 . 3 . 3 . . Full Trace Events 1 | . . . . . 1 . . . . . . . . . . . . Feedback Events . | . . . . . . . . . . . . . . . . . . Feedback Blocked . | . . . . . . . . . . . . . . . . . . Robot Schematics Acquired . | . . . . . . . . . . . . . . . . . . Robots Built . | . . . . . . . . . . . . . . . . . . Authchips . | . . . . . . . . . . . . . . . . . . Time . | . . . . . . . . . . . . . . . . . . Total Robot Build Rating . | . . . . . . . . . . . . . . . . . . Part Schematics Acquired 5 | . . . . . 3 . 2 . . . . . . . . . . Parts Built 1 | . . . . . . . . . 1 . . . . . . . . Authchips . | . . . . . . . . . . . . . . . . . . Time 84 | . . . . . . . . . 84 . . . . . . . . Total Part Build Rating 4 | . . . . . . . . . 4 . . . . . . . . Parts Repaired . | . . . . . . . . . . . . . . . . . . Time . | . . . . . . . . . . . . . . . . . . Parts Recycled . | . . . . . . . . . . . . . . . . . . Recycled Matter . | . . . . . . . . . . . . . . . . . . Retrieved Matter . | . . . . . . . . . . . . . . . . . . Retrieved Components 3 | . . . . . 3 . . . . . . . . . . . . Parts Scanalyzed 5 | . . . . . 3 . 2 . . . . . . . . . . Part Schematics Acquired 5 | . . . . . 3 . 2 . . . . . . . . . . Parts Damaged . | . . . . . . . . . . . . . . . . . . Bothacking | -11 -10 -10 -10 -9 -8 -8 -8 -8 -7 -7 -6 -6 -6 -6 -5 -5 -5 ------------ Run | Scr Mat Min Exi Min Mat Gar Mat Gar Fac Gar Fac Gar Fac Gar Fac Gar Fac Used RIF Installer 6 | . . . . . . 1 . 1 . 1 . 1 . 1 . 1 . Command Fork 1 | . . . . . . . . . . 1 . . . . . . . Zone Cloak 1 | . . . . . . . . . . . . . . 1 . . . Watcher Feeds 1 | . . . . . . . . . . . . . . . . 1 . Alert ID Control 1 | . . . . . . . . 1 . . . . . . . . . Program Shield 1 | . . . . . . . . . . . . 1 . . . . . Robots Hacked 53 | . . . . . . . 1 . 7 10 . 12 2 7 4 6 4 Non-combat 4 | . . . . . . . 1 . 1 . . . . . 2 . . Combat 49 | . . . . . . . . . 6 10 . 12 2 7 2 6 4 Robot Hacks Applied 57 | . . . . . . . 1 . 8 11 . 12 2 9 4 6 4 parse_system 2 | . . . . . . . 1 . 1 . . . . . . . . block_reporting 1 | . . . . . . . . . . . . . . . 1 . . map_route 1 | . . . . . . . . . . . . . . . 1 . . find_shortcuts 1 | . . . . . . . . . . 1 . . . . . . . scatter_targeting 11 | . . . . . . . . . 3 3 . 1 . 4 . . . spike_heat 7 | . . . . . . . . . 1 . . 1 . 1 . 3 1 amplify_resonance 3 | . . . . . . . . . 1 2 . . . . . . . disable_weapons 1 | . . . . . . . . . . 1 . . . . . . . overwrite_iff 16 | . . . . . . . . . 2 4 . 5 . 2 . 2 1 formatsys_high 14 | . . . . . . . . . . . . 5 2 2 2 1 2 Relay Couplers Released 61 | . . . . . . . . 9 . 13 . 17 . 12 . 10 . Machine Destruction 61 | . . . . . . . . 9 . 13 . 17 . 12 . 10 . Attached 27 | . . . . . . . . . 2 4 . 6 2 5 1 6 1 Fabnet Peak Effective % . | . . . . . . . . . . . . . . . . . . Robots Rewired 7 | . . . . . . . . 6 . 1 . . . . . . . Allies Hacked . | . . . . . . . . . . . . . . . . . . Hacks Repelled . | . . . . . . . . . . . . . . . . . . Allies | -11 -10 -10 -10 -9 -8 -8 -8 -8 -7 -7 -6 -6 -6 -6 -5 -5 -5 -------- Run | Scr Mat Min Exi Min Mat Gar Mat Gar Fac Gar Fac Gar Fac Gar Fac Gar Fac Total Allies 45 | . . . . 3 . . . 6 2 5 . 10 2 7 2 5 3 Largest Group 6 | . . . . 3 . . . 6 1 1 . 3 2 5 1 3 2 Highest-Rated Group 136 | . . . . 40 . . . 96 18 16 . 87 82 136 49 127 77 Highest-Rated Ally 49 | . . . . 16 . . . 18 18 16 . 32 41 47 49 49 41 Total Orders 4 | . . . . . . . . . . . . 1 . 3 . . . STAY 1 | . . . . . . . . . . . . . . 1 . . . ROAM 2 | . . . . . . . . . . . . 1 . 1 . . . FOLLOW 1 | . . . . . . . . . . . . . . 1 . . . Ally Attacks 191 | . . . . . . . . 30 8 10 . 56 . 56 6 23 2 Total Damage 3924 | . . . . . . . . 657 62 127 . 970 . 1401 106 514 87 Kills 29 | . . . . . . . . 9 . . . 6 . 9 . 5 . Allies Corrupted . | . . . . . . . . . . . . . . . . . . Allies Melted 3 | . . . . . . . . . 1 . . . . . . 2 . Intel | -11 -10 -10 -10 -9 -8 -8 -8 -8 -7 -7 -6 -6 -6 -6 -5 -5 -5 ------- Run | Scr Mat Min Exi Min Mat Gar Mat Gar Fac Gar Fac Gar Fac Gar Fac Gar Fac Robot Analysis Total 5 | . 1 . . . 4 . . . . . . . . . . . . Derelict Logs Recovered 2 | . . 1 . 1 . . . . . . . . . . . . . Drone Launches . | . . . . . . . . . . . . . . . . . . Drone Recoveries . | . . . . . . . . . . . . . . . . . . Exploration | -11 -10 -10 -10 -9 -8 -8 -8 -8 -7 -7 -6 -6 -6 -6 -5 -5 -5 ------------- Run | Scr Mat Min Exi Min Mat Gar Mat Gar Fac Gar Fac Gar Fac Gar Fac Gar Fac Turns Passed 16917 | 71 853 269 196 542 1735 1093 1923 1483 810 1061 72 1416 547 2171 1121 1426 128 Spaces Moved 9214 | 47 512 168 164 442 1014 509 1025 1042 550 637 48 756 300 948 419 564 69 Core 6 | 6 . . . . . . . . . . . . . . . . . Treads . | . . . . . . . . . . . . . . . . . . Legs 6175 | 41 512 168 164 442 1014 509 1025 777 . . . . . 663 419 441 . Wheels 3033 | . . . . . . . . 265 550 637 48 756 300 285 . 123 69 Hover . | . . . . . . . . . . . . . . . . . . Flight . | . . . . . . . . . . . . . . . . . . Fastest Speed 50 | 50 120 120 120 120 120 190 110 105 120 120 120 120 120 165 190 120 120 Average Speed 149 | 111 120 120 120 120 137 190 140 113 130 131 120 131 158 197 241 201 120 Slowest Speed 400 | 120 120 120 120 120 195 190 190 190 135 135 120 195 165 400 400 260 120 Overloaded Moves . | . . . . . . . . . . . . . . . . . . Propulsion Burnouts . | . . . . . . . . . . . . . . . . . . Robots Hopped . | . . . . . . . . . . . . . . . . . . Cave-ins Triggered . | . . . . . . . . . . . . . . . . . . Exploration Rate (%) 48 | 3 67 30 53 98 85 60 74 70 18 76 2 74 8 83 13 59 3 Regions Visited 17 Branch Regions 3 Pre-discovered Areas 2 | . . . 1 . 1 . . . . . . . . . . . . Known Exits Taken 6 | . . . . . 1 . 1 . 1 . 1 . 1 . 1 . . Unknown Exits Taken 5 | 1 1 1 1 1 . . . . . . . . . . . . . Scrap Searched 2 | . . . . 2 . . . . . . . . . . . . . Spaces Dug 4 | . . . . . . . . . 1 . . . . . 3 . . Terrain Destroyed 174 | . . 33 . . . 29 1 46 1 16 . 8 . . 9 31 . Melee 1 | . . . . . . . . . 1 . . . . . . . . Projectile 13 | . . . . . . . 1 . . . . . . . 9 3 . AOE 160 | . . 33 . . . 29 . 46 . 16 . 8 . . . 28 . Terrain Rammed . | . . . . . . . . . . . . . . . . . . Walls Destroyed . | . . . . . . . . . . . . . . . . . . Machines Disabled . | . . . . . . . . . . . . . . . . . . Actions | -11 -10 -10 -10 -9 -8 -8 -8 -8 -7 -7 -6 -6 -6 -6 -5 -5 -5 --------- Run | Scr Mat Min Exi Min Mat Gar Mat Gar Fac Gar Fac Gar Fac Gar Fac Gar Fac Total 11435 | 64 657 200 163 455 1252 595 1365 1244 625 803 62 1071 368 1156 486 766 103 Wait 743 | 1 51 3 . 5 103 13 156 41 28 23 13 94 58 53 13 71 17 Move 9202 | 46 511 167 163 441 1014 508 1025 1041 550 636 48 755 300 947 419 562 69 Hop . | . . . . . . . . . . . . . . . . . . Pick Up 108 | 8 12 . . 2 9 2 4 15 7 9 . 11 1 16 5 7 . Fast Attach 74 | 4 2 1 . 2 12 2 5 14 6 2 . 4 . 7 5 8 . Attach 59 | 3 1 . . . 7 . 1 4 1 4 1 9 1 14 7 5 1 Detach 13 | 1 . . . . 3 . . 2 1 . . 1 . 3 1 1 . Swap 127 | 1 7 7 . 1 9 11 19 21 5 8 . 5 3 4 9 16 1 Drop 123 | . 17 2 . 4 15 11 22 13 9 9 . 4 1 3 3 10 . Fire 710 | . 56 20 . . 80 38 99 43 16 64 . 110 4 85 23 57 15 Melee 59 | . . . . . . . 5 29 2 . . 6 . 3 . 14 . Ram . | . . . . . . . . . . . . . . . . . . Kick 2 | . . . . . . . 1 . . . . . . . 1 . . Crush . | . . . . . . . . . . . . . . . . . . Escape Stasis 187 | . . . . . . 10 . 21 . 48 . 72 . 21 . 15 . Rewire . | . . . . . . . . . . . . . . . . . . Trap 28 | . . . . . . . 28 . . . . . . . . . . Miscellaneous . | . . . . . . . . . . . . . . . . . . Route ------- -11/Scrapyard -10/Materials (discovered 4 exits: [*Mat x2] / [*Min x2]) -10/Mines -10/Exiles -9/Mines (discovered 2 exits: *Mat x2) -8/Materials (discovered 4 exits: *Fac x2 / *Sto / Gar) -8/Garrison (discovered 3 exits: *Mat x3) -8/Materials (discovered 5 exits: *Fac x3 / *Sto / Gar) -8/Garrison (discovered 3 exits: *Fac x3) -7/Factory (discovered 2 exits: *Fac / Gar) -7/Garrison (discovered 3 exits: *Fac x3) -6/Factory -6/Garrison (discovered 3 exits: *Fac x3) -6/Factory -6/Garrison (discovered 3 exits: *Fac x3) -5/Factory (discovered 2 exits: *Upp / Gar) -5/Garrison (discovered 3 exits: *Fac x3) -5/Factory History --------- Turn | Location | Event 8 | -11/Scrapyard | Discovered new exit (range 16) 72 | -11/Scrapyard | Entered Materials 313 | -10/Materials | Build established: Mutant 476 | -10/Materials | Discovered new exit (range 15) 565 | -10/Materials | Discovered new exit (range 7) 606 | -10/Materials | Discovered new exit (range 10) 749 | -10/Materials | Central database locked down 811 | -10/Materials | Discovered new exit (range 4) 925 | -10/Materials | Entered Mines 979 | -10/Mines | Assembled infested the area 984 | -10/Mines | Assisted by a Guerilla fighting off Assembled 1145 | -10/Mines | Learned 2 Materials zone layouts 1188 | -10/Mines | Deemed a non-threat by the Exiles lab entrance 1190 | -10/Mines | Discovered new exit (range 5) 1194 | -10/Mines | Entered Exiles 1227 | -10/Exiles | Met 8R-AWN 1245 | -10/Exiles | Met EX-HEX 1295 | -10/Exiles | Met EX-DEC 1319 | -10/Exiles | Learned location of Zion (-6) 1380 | -10/Exiles | Discovered new exit (range 10) 1390 | -10/Exiles | Entered Mines 1404 | -9/Mines | Learned Materials emergency access door positions 1460 | -9/Mines | Discovered new exit (range 9) 1479 | -9/Mines | Received a Rocket Launcher from a helpful Derelict 1529 | -9/Mines | Assisted by bots powering up and referring to "LRC-V3" 1662 | -9/Mines | Found a hidden stash of uninstalled traps 1718 | -9/Mines | Discovered new exit (range 3) 1810 | -9/Mines | Found a damaged Exp. Sensor Array with a note attached 1813 | -9/Mines | Found Prototype Device 1813 | -9/Mines | Identified Exp. Sensor Array 1932 | -9/Mines | Entered Materials 1932 | -8/Materials | Evolved 4 slots: Utility x4 1933 | -8/Materials | Identified exit to Factory 2691 | -8/Materials | Identified exit to Storage 3269 | -8/Materials | Lost 3 parts (1p1n1u) 3457 | -8/Materials | Discovered exit to Factory (range 14) 3667 | -8/Materials | Identified exit to Garrison 3667 | -8/Materials | Entered Garrison 3830 | -8/Garrison | Build established: Scavenger-Mutant 3859 | -8/Garrison | Triggered checkpoint 4060 | -8/Garrison | Discovered new exit (range 13) 4081 | -8/Garrison | Identified exit to Materials 4254 | -8/Garrison | Triggered checkpoint 4418 | -8/Garrison | Discovered exit to Materials (range 13) 4505 | -8/Garrison | Triggered checkpoint 4722 | -8/Garrison | Discovered exit to Materials (range 9) 4746 | -8/Garrison | Installed Relay Interface Framework 4760 | -8/Garrison | Entered Materials 5306 | -8/Materials | Discovered exit to Storage (range 10) 5471 | -8/Materials | Discovered exit to Factory (range 15) 5671 | -8/Materials | Discovered exit to Factory (range 15) 5907 | -8/Materials | Build established: Mutant 6368 | -8/Materials | Discovered exit to Factory (range 10) 6488 | -8/Materials | Garrison activated, responded to threat 6683 | -8/Materials | Identified exit to Garrison 6683 | -8/Materials | Entered Garrison 6721 | -8/Garrison | Triggered checkpoint 6782 | -8/Garrison | Discovered exit to Factory (range 13) 6905 | -8/Garrison | Triggered checkpoint 6945 | -8/Garrison | Core integrity fell below 50% 7009 | -8/Garrison | Discovered exit to Factory (range 14) 7131 | -8/Garrison | Triggered checkpoint 7250 | -8/Garrison | Lost 3 parts (2u1w) 7506 | -8/Garrison | Triggered checkpoint 7508 | -8/Garrison | Triggered checkpoint 7549 | -8/Garrison | Lost 4 parts (2p2w) 7697 | -8/Garrison | Discovered exit to Factory (range 15) 7702 | -8/Garrison | Triggered checkpoint 7753 | -8/Garrison | Expanded RIF knowledge: Alert ID Control 7787 | -8/Garrison | Garrison Relay disabled 7982 | -8/Garrison | Triggered checkpoint 8003 | -8/Garrison | Garrison Relay disabled 8107 | -8/Garrison | Build established: Bothacker-Mutant 8166 | -8/Garrison | Entered Factory 8166 | -7/Factory | Accompanied by 1 ally 8166 | -7/Factory | Evolved 2 slots: Utility x2 8421 | -7/Factory | Fabricated Remote Datajack (x1) 8491 | -7/Factory | Discovered new exit (range 3) 8494 | -7/Factory | Identified exit to Factory 8976 | -7/Factory | Identified exit to Garrison 8976 | -7/Factory | Entered Garrison 9004 | -7/Garrison | Triggered checkpoint 9065 | -7/Garrison | Garrison Relay disabled 9198 | -7/Garrison | Triggered checkpoint 9338 | -7/Garrison | Discovered exit to Factory (range 14) 9469 | -7/Garrison | Discovered exit to Factory (range 10) 9506 | -7/Garrison | Triggered checkpoint 9556 | -7/Garrison | Garrison Relay disabled 9659 | -7/Garrison | Triggered checkpoint 9814 | -7/Garrison | Triggered checkpoint 9846 | -7/Garrison | Garrison Relay disabled 9872 | -7/Garrison | Phase Generator disabled 9930 | -7/Garrison | Discovered exit to Factory (range 9) 9948 | -7/Garrison | Expanded RIF knowledge: Command Fork 10037 | -7/Garrison | Entered Factory 10037 | -6/Factory | Evolved 2 slots: Utility x2 10109 | -6/Factory | Identified exit to Garrison 10109 | -6/Factory | Entered Garrison 10150 | -6/Garrison | Spotted B-75 Beast 10152 | -6/Garrison | Triggered checkpoint 10198 | -6/Garrison | Triggered checkpoint 10242 | -6/Garrison | Lost 3 parts (2u1w) 10258 | -6/Garrison | Garrison Relay disabled 10508 | -6/Garrison | Triggered checkpoint 10644 | -6/Garrison | Destroyed B-75 Beast 10699 | -6/Garrison | Discovered new exit (range 15) 10718 | -6/Garrison | Identified exit to Factory 10727 | -6/Garrison | Expanded RIF knowledge: Program Shield 10760 | -6/Garrison | Triggered checkpoint 10822 | -6/Garrison | Garrison Relay disabled 11018 | -6/Garrison | Build established: Botlord-Mutant 11042 | -6/Garrison | Triggered checkpoint 11089 | -6/Garrison | Garrison Relay disabled 11163 | -6/Garrison | Discovered exit to Factory (range 9) 11225 | -6/Garrison | Triggered checkpoint 11350 | -6/Garrison | Triggered checkpoint 11446 | -6/Garrison | Garrison Relay disabled 11496 | -6/Garrison | Discovered exit to Factory (range 10) 11525 | -6/Garrison | Entered Factory 12072 | -6/Factory | Identified exit to Garrison 12072 | -6/Factory | Entered Garrison 12072 | -6/Garrison | Accompanied by 2 allies 12118 | -6/Garrison | Triggered checkpoint 12160 | -6/Garrison | Garrison Relay disabled 12350 | -6/Garrison | Triggered checkpoint 12371 | -6/Garrison | Spotted B-75 Beast 12463 | -6/Garrison | Destroyed B-75 Beast 12480 | -6/Garrison | Lost 3 parts (1p1u1w) 12545 | -6/Garrison | Discovered new exit (range 10) 12558 | -6/Garrison | Identified exit to Factory 12684 | -6/Garrison | Triggered checkpoint 12738 | -6/Garrison | Garrison Relay disabled 12860 | -6/Garrison | Triggered checkpoint 12918 | -6/Garrison | Lost 3 parts (1n1u1w) 13206 | -6/Garrison | Triggered checkpoint 13362 | -6/Garrison | Lost 6 parts (2n3u1w) 13781 | -6/Garrison | Discovered exit to Factory (range 15) 13963 | -6/Garrison | Discovered exit to Factory (range 12) 13995 | -6/Garrison | Expanded RIF knowledge: Zone Cloak 14060 | -6/Garrison | Triggered checkpoint 14138 | -6/Garrison | Garrison Relay disabled 14243 | -6/Garrison | Entered Factory 14243 | -5/Factory | Evolved 2 slots: Utility x2 14736 | -5/Factory | Discovered new exit (range 8) 14754 | -5/Factory | Identified exit to Upper Caves 15364 | -5/Factory | Identified exit to Garrison 15364 | -5/Factory | Entered Garrison 15364 | -5/Garrison | Accompanied by 1 ally 15425 | -5/Garrison | Triggered checkpoint 15586 | -5/Garrison | Discovered new exit (range 14) 15760 | -5/Garrison | Triggered checkpoint 15848 | -5/Garrison | Triggered checkpoint 15944 | -5/Garrison | Triggered checkpoint 15985 | -5/Garrison | Lost 3 parts (2n1w) 16028 | -5/Garrison | Discovered new exit (range 14) 16181 | -5/Garrison | Garrison Relay disabled 16727 | -5/Garrison | Discovered new exit (range 12) 16739 | -5/Garrison | Identified exit to Factory 16747 | -5/Garrison | Expanded RIF knowledge: Watcher Feeds 16790 | -5/Garrison | Entered Factory 16918 | -5/Factory | Self-destructed Last Messages --------------- 16903_ Adv. Plasma Cannon destroyed. 16904_ Slug penetrates Slayer 6a. 16904_ Slug penetrates Wall. 16906_ Slug penetrates U-05 Engineer. 16906_ U-05 Engineer destroyed. 16907_ Slug penetrates Slayer 6a. 16909_ Slayer 6a reactivates. 16909_ Jacked H-66 Slayer... >>formatsys_high Rerouting network defenses. Erasing system data. Installing primary routines, ETC: 6. 16909_ Slug penetrates Slayer 6a. 16910_ Reactivated Slayer 6b. 16911_ Slug penetrates Slayer 6a. 16911_ Slayer 6a destroyed. 16913_ Slug penetrates Slayer 6b. 16914_ Slayer 6b destroyed. 16917_ Relay Coupler [Brawler] destroyed. 16917_ Lgt. Angular Momentum Engine destroyed. Map ----- +----------------------------------------------------+ | ?????????????????????????????????????????????? | | ?????????????????????????????????????????????? | | ?????????????????????????????????????????????? | | ?????????????????????????????????????????????? | | ???????????? ??????????????????????????????? | | ???????????? ??????????????????????????????? | | ???????????# #?????????????????????????????? | | ??????????## % #?????????????????????????????? | | ?????????? #############?????????????????? | | ??????????? % ## #?????????????????? | | ??????????? ## """" #?????????????????? | | ???????????# ## """""" #?????????????????? | | ???????????# ## ""F "" #?????????????????? | | ???????????# ## """ #?????????????????? | | ???????????# ## #?????????????????? | | ???????????# ## #?????????????????? | | ??? ? ?????# ## """" #?????????????????? | | ??? " "???## ## """" #?????????????????? | | ??? " " "?# # ! """" #?????????????????? | | ??" " " " # % # """" #?????????????????? | | ??" " " " + # #?????????????????? | | ??" " " " # # * [ #?????????????????? | | ??? " " ??# # #?????????????????? | | ??? " ????# # ! #?????????????????? | | ??? ??????# #####;###########+######+##### | | ??????????# @ h | | ??????????# =% | | ??????????# =*|= !! | | ??????????# =%!!=%* | | ??????????# ! != | | ??????????############# ################ | | ??????????????????????# T#?????????????? | | ??????????????????????# #?????????????? | | ??????????????????????# A ##?????????????? | | ??????????????????????# #??????????????? | | ??????????????????????# #??????????????? | | ??????????????????????# #??????????????? | | ?????????????????###??### #??????????????? | | ??????????????????" ??# #??????????????? | | ??????????????????" """ # #??????????????? | | ??????????????????? """ + +??????????????? | | ????????????????????????# #??????????????? | | ????????????????????????# #??????????????? | | ????????????????????????# #??????????????? | | ????????????????????????# #??????????????? | | ????????????????????????# #??????????????? | | ????????????????????????# +??????????????? | | ????????????????????????# #??????????????? | | ????????????????????????# #??????????????? | | ????????????????????????# #??????????????? | +----------------------------------------------------+ Best States ------------- Heat Dissipation 59 Energy Generation 18 Energy Capacity 500 Matter Stores 300 Matter Capacity 300 Sight Range 16 Robot Scan Range 20 Terrain Scan Density 10 Armor Coverage 750 Resistance: KI 30 Core Shielding 30 Evasion (%) 55 Targeting Accuracy 8 Melee Accuracy 8 Particle Charging 20 Relay Coupler Types 6 Relay Coupler Value 173 Item Schematics ----------------- Exp. Sensor Array | -8/Materials | Scanalyzed Cld. Airjet | -8/Materials | Scanalyzed Hcp. Storage Unit | -8/Materials | Scanalyzed Arm. Wheel | -8/Materials | Scanalyzed Imp. Datajack | -8/Materials | Scanalyzed Robot Schematics ------------------ None Fabricated ------------ Remote Datajack | x1 | -7/Factory | Preloaded Alien Tech Used ----------------- None Achievements -------------- None Challenges ------------ None Game ------ Seed WardroneReflectiveBooster Manual? 0 Play Time 02:31:56 Cumulative 163.2 hours Start 2022.06.02 @ 23:45:15 End 2022.06.09 @ 12:04:19 Sessions 11 Manual Loads 0 Difficulty Rogue Special Mode None Game No. 118 Rogue 118 Adventurer 0 Explorer 0 Win Type - Total 3 Types 3/0/0/0/0/0/0/0/0 Lore% 62 Gallery% 71 Achievement% 58 Wizard Run 0 Options --------- ASCII 0 Keyboard 1 Movement Numpad Keybinds 0 Fullscreen 1 Font 18/SmallcapsGlow Map View 76x50 Tactical HUD 1 Map Filters NONE Filters NONE Steam 1 RUN: 7efa0be1-6c5e-4b3e-8140-fdca3b8f81c4